Cogmind - Beta 16 @@@ ROGUE MODE // 2026.01.12 @ 00:18:20 Player: Legato Result: Destroyed by G-67 Veteran with Plasma Rifle Performance ------------- Evolutions (6) 3000 Regions Visited (15) 3000 Robots Destroyed (51) 255 Value Destroyed (1471) 1471 Prototype IDs (31) 620 Alien Tech Used (0) 0 Bonus (628) 628 TOTAL SCORE: 8974 Bonus ------- Follower Combat Kills 336 Aligned with FarCom 300 Friendly Fire -8 Cogmind --------- Core Integrity 0/1150 Matter 236/300 Energy 99/100 System Corruption 7% Temperature Cool (0) Movement Core (50) Location -4/Factory Parts ------- > --- POWER (1) -------- (None) > --- PROPULSION (7) --- (None) > --- UTILITY (9) ------ (None) > --- WEAPON (2) ------- (None) > --- INVENTORY (5) ---- Micro Nuclear Core Light Angular Momentum Engine Light Antimatter Reactor Peak State ------------ > --- POWER ------------ F-cell Engine > --- PROPULSION ------- Improved Cesium-ion Thruster Nuclear Pulse Array Flying Fortress v7 > --- UTILITY ---------- Large Storage Unit Advanced Melee Analysis Suite Advanced Melee Analysis Suite Cloak of Protection Hacking Suite Hacking Suite System Shield > --- WEAPON ----------- Chainsword Chainsword > --- INVENTORY -------- Light Nuclear Core Micro Nuclear Core Micro Nuclear Core Light Angular Momentum Engine Nuclear Pulse Array Hardened Light Armor Plating Mass Driver Plasma Cutter Ripper [Rating: 95] Favorites ----------- Power Ion Engine Engine Ion Engine Power Core Micro Nuclear Core Propulsion Light Treads Treads Light Treads Leg Myomer Leg Flight Unit Flying Fortress v7 Utility Large Storage Unit Device Improved Sensor Array Storage Large Storage Unit Processor Improved Signal Interpreter Hackware Hacking Suite Protection Weapon Shielding Weapon Chainsword Energy Gun Wave Gun Energy Cannon Heavy Disruptor Cannon Ballistic Gun Light Assault Rifle Ballistic Cannon Hardcell Cannon Launcher Grenade Launcher Impact Weapon Heavy Mace Slashing Weapon Chainsword Build | -11 -10 -10 -10 -9 -8 -7 -6 -6 -6 -5 -5 -5 -5 -5 -4 ------- Run | Yrd Mat Min Exi Min Mat Fac Fac Was Fac Fac Ext Cet Arc Hub Fac Slots Evolved 12 | . . . . . 4 2 2 . . 2 . . . . 2 Power . | . . . . . . . . . . . . . . . . Propulsion 5 | . . . . . 2 1 . . . 1 . . . . 1 Utility 7 | . . . . . 2 1 2 . . 1 . . . . 1 Weapon . | . . . . . . . . . . . . . . . . Parts Attached 92 | 7 8 . 2 . 9 5 7 . 3 3 17 3 1 6 21 Power 10 | 1 2 . 1 . 1 . 2 . . . 1 . . 1 1 Engine 7 | 1 2 . 1 . 1 . 1 . . . . . . 1 . Core 3 | . . . . . . . 1 . . . 1 . . . 1 Reactor . | . . . . . . . . . . . . . . . . Propulsion 30 | 2 3 . . . 1 1 . . 1 . 9 2 1 1 9 Treads 13 | 2 3 . . . . . . . . . 8 . . . . Leg 3 | . . . . . . . . . . . . . . . 3 Wheel . | . . . . . . . . . . . . . . . . Hover . | . . . . . . . . . . . . . . . . Flight 14 | . . . . . 1 1 . . 1 . 1 2 1 1 6 Utility 35 | 2 2 . 1 . 4 3 4 . 1 3 7 1 . 4 3 Device 9 | 1 . . 1 . 1 2 . . 1 . 1 . . 1 1 Storage 3 | 1 1 . . . . . . . . 1 . . . . . Processor 5 | . . . . . . 1 1 . . . . . . 3 . Hackware 7 | . . . . . 1 . 2 . . 2 1 1 . . . Protection 11 | . 1 . . . 2 . 1 . . . 5 . . . 2 Artifact . | . . . . . . . . . . . . . . . . Weapon 17 | 2 1 . . . 3 1 1 . 1 . . . . . 8 Energy Gun 2 | . . . . . . . . . . . . . . . 2 Energy Cannon 1 | . . . . . . . . . . . . . . . 1 Ballistic Gun 6 | 2 . . . . 2 . . . . . . . . . 2 Ballistic Cannon 1 | . . . . . . . . . . . . . . . 1 Launcher 1 | . 1 . . . . . . . . . . . . . . Special Weapon . | . . . . . . . . . . . . . . . . Impact Weapon 1 | . . . . . 1 . . . . . . . . . . Slashing Weapon 5 | . . . . . . 1 1 . 1 . . . . . 2 Piercing Weapon . | . . . . . . . . . . . . . . . . Special Melee Weapon . | . . . . . . . . . . . . . . . . Unidentified Prototypes 4 | . . . . . 1 . 1 . 1 . . . . 1 . Parts Lost 37 | . . . . . . . . . . . 10 3 3 1 20 Power 2 | . . . . . . . . . . . 1 . . . 1 Propulsion 18 | . . . . . . . . . . . 5 2 2 . 9 Utility 12 | . . . . . . . . . . . 4 1 1 1 5 Weapon 5 | . . . . . . . . . . . . . . . 5 Highest Loss Streak 14 | . . . . . . . . . . . 8 3 3 1 14 To Critical Strikes . | . . . . . . . . . . . . . . . . Average Backups 12 | 2 12 15 13 10 11 14 14 15 14 14 11 12 10 9 4 Power 3 | . 2 3 2 2 2 3 4 5 4 4 3 4 4 4 3 Propulsion 1 | 1 2 3 2 1 . . . . . . 1 3 2 1 . Utility 5 | . 4 6 6 6 7 9 8 9 9 9 4 2 2 1 . Weapon 1 | . 2 3 2 1 1 . . . . . . 1 1 1 . Tool/Special . | . . . . . . . . . . . . . . . . Unused Backups 24 | . 3 . 4 1 . 3 . . 2 1 4 . . . 6 Power 9 | . 2 . . . . 1 . . 2 . . . . . 4 Propulsion 2 | . . . 2 . . . . . . . . . . . . Utility 9 | . 1 . . 1 . 2 . . . 1 4 . . . . Weapon 3 | . . . 2 . . . . . . . . . . . 1 Tool/Special 1 | . . . . . . . . . . . . . . . 1 Average Slot Usage (%) 80 | . 99 100 79 85 70 71 79 80 80 81 81 81 79 80 43 Engine 7 | . 14 14 14 14 9 7 6 6 6 5 2 . . 4 2 Treads 10 | . 27 28 28 28 . . . . . . 8 . . . . Flight 8 | . . . . . 8 12 13 13 13 17 11 16 15 17 8 Device 5 | . 9 . 10 5 . 6 6 6 6 5 2 . . 4 2 Storage 8 | . 14 14 14 14 9 7 6 6 6 5 5 5 5 5 1 Processor 4 | . . . . . . 6 10 13 13 11 5 5 5 10 5 Hackware 9 | . . . . . 8 7 19 20 20 22 16 16 17 17 7 Protection 5 | . 4 14 3 8 17 7 1 . . . 12 17 15 4 . Ballistic Gun 8 | . 27 28 7 14 10 . . . . . . . . . 1 Impact Weapon 1 | . . . . . 6 7 3 . . . . . . . . Slashing Weapon 5 | . . . . . . 4 9 13 13 11 11 11 11 11 6 Peak Build Rating 95 | 7 8 8 10 11 53 61 71 71 74 82 82 80 78 91 95 Average Rating 44 | 5 7 8 8 10 47 58 69 71 73 79 63 78 75 86 52 On Entrance 48 | . 7 8 8 10 10 52 61 71 71 74 82 80 78 71 86 Avg Prop Armor Cover (%) 1 | . . . . . . . . . . . 1 . . . . Naked Turns 45 | . . . . . . . . . . . . . . . 45 Heaviest Build 54 | 14 29 29 29 25 34 35 40 38 38 37 51 47 47 54 46 Greatest Support 92 | 40 40 40 40 40 50 55 55 55 56 61 92 61 61 61 70 Greatest Overweight (x) 2 | . 1 . . . . . . . . . 2 . . . 1 Average Overweight (x) . | . . . . . . . . . . . . . . . . Largest Inventory Capacity 15 | 8 15 15 15 15 15 15 15 15 15 15 15 15 15 15 15 Average Capacity 14 | 7 14 15 15 15 15 15 15 15 15 15 15 15 15 15 8 Most Carried 15 | 4 15 15 15 14 15 15 15 15 15 15 15 15 12 12 12 Average Carried 12 | 2 12 15 14 13 11 14 14 15 14 14 11 12 11 10 5 Final Capacity 15 | 8 15 15 15 15 15 15 15 15 15 15 15 15 15 15 5 Final Carried 15 | 4 15 15 15 13 15 15 15 15 15 15 15 12 11 12 3 Class Distribution -------------------- 54% | Mutant 20% | Hacker-Scout 13% | Hacker-Mutant 5% | Scavenger-Mutant 3% | Hacker-Gladiator Dominant Class ---------------- Mutant | -10/Materials Mutant | -10/Mines Mutant | -10/Exiles Mutant | -9/Mines Mutant | -8/Materials Mutant | -7/Factory Hacker-Scout | -6/Factory Hacker-Scout | -6/Waste Hacker-Scout | -6/Factory Hacker-Scout | -5/Factory Hacker-Mutant | -5/Extension Hacker-Mutant | -5/Cetus Hacker-Mutant | -5/Archives Hacker-Gladiator | -5/Hub_04(d) Mutant | -4/Factory Resources | -11 -10 -10 -10 -9 -8 -7 -6 -6 -6 -5 -5 -5 -5 -5 -4 ----------- Run | Yrd Mat Min Exi Min Mat Fac Fac Was Fac Fac Ext Cet Arc Hub Fac Matter Collected 1451 | 255 274 . . . 144 193 70 . 38 48 225 . . 55 149 Remotely . | . . . . . . . . . . . . . . . . Salvage Created 2171 | 10 346 . . . . 140 97 . 82 128 764 . 34 100 470 Parts 120 | 1 31 . . . . 7 . . 4 8 31 . 1 3 34 Haulers Intercepted 8 | . 2 . . . . 2 1 . 1 1 . . . 1 . Recyclers Shooed 2 | . 1 . . . . . . . . . . . . . 1 Parts Field Recycled . | . . . . . . . . . . . . . . . . Retrieved Matter . | . . . . . . . . . . . . . . . . Parts Self-Destructed . | . . . . . . . . . . . . . . . . Prevented . | . . . . . . . . . . . . . . . . Parts Restored . | . . . . . . . . . . . . . . . . Kills | -11 -10 -10 -10 -9 -8 -7 -6 -6 -6 -5 -5 -5 -5 -5 -4 ------- Run | Yrd Mat Min Exi Min Mat Fac Fac Was Fac Fac Ext Cet Arc Hub Fac Combat Hostiles Destroyed 25 | . 7 . . . . . . . . . 11 . . . 7 Melee 16 | . . . . . . . . . . . 11 . . . 5 Guns 9 | . 7 . . . . . . . . . . . . . 2 Classes Destroyed 14 | 1 7 . . . . . . . . . 2 . . . 4 Worker 4 | . 2 . . . . 1 . . . . . . . . 1 Builder 3 | . 2 . . . . . . . . . 1 . . . . Tunneler 2 | 1 1 . . . . . . . . . . . . . . Hauler 8 | . 2 . . . . 2 1 . 1 1 . . . 1 . Recycler 1 | . . . . . . . . . . . 1 . . . . Mechanic 1 | . . . . . . . . . . . . . . . 1 Operator 5 | . 1 . . . . 1 . . . 1 1 . 1 . . Watcher 2 | . 1 . . . . . . . . 1 . . . . . Swarmer 11 | . 6 . . . . . . . . . 4 . . . 1 Grunt 3 | . 1 . . . . . . . . . 2 . . . . Duelist 1 | . . . . . . . . . . . . . . . 1 Sentry 6 | . . . . . . . . . . . 5 . . . 1 Hunter 2 | . . . . . . . . . . . . . . . 2 Programmer 2 | . . . . . . . . . . . . . . . 2 Best Kill Streak 6 | 1 4 . . . . 2 1 . 1 1 6 . 1 1 3 Combat Bots Only 6 | . 3 . . . . . . . . . 6 . . . 3 Max Kills in Single Turn 1 | 1 1 . . . . 1 1 . 1 1 1 . 1 1 1 Gunslinging . | . . . . . . . . . . . . . . . . Exploded . | . . . . . . . . . . . . . . . . Melee 1 | . . . . . . . . . . . 1 . . . 1 Uniques/NPCs Destroyed . | . . . . . . . . . . . . . . . . Combat | -11 -10 -10 -10 -9 -8 -7 -6 -6 -6 -5 -5 -5 -5 -5 -4 -------- Run | Yrd Mat Min Exi Min Mat Fac Fac Was Fac Fac Ext Cet Arc Hub Fac Hostile Shots Fired 525 | . 34 . . . . 11 . . 31 2 182 29 23 9 204 Missed 192 | . 9 . . . . 9 . . 15 1 50 13 8 3 84 Hits 333 | . 25 . . . . 2 . . 16 1 132 16 15 6 120 Melee 7 | . . . . . . . . . . . . . . . 7 Projectile 326 | . 25 . . . . 2 . . 16 1 132 16 15 6 113 AOE 2 | . . . . . . . . . . . . . . . 2 Critical Strikes 19 | . . . . . . . . . . . 3 1 1 . 14 Actively Blocked 1 | . . . . . . . . . . . . . . . 1 Damage Taken 6945 | . 221 . . . . 84 . . 173 20 2434 406 394 127 3086 Core 1659 | . 16 . . . . 11 . . 16 20 313 71 54 . 1158 Absorbed by Shields . | . . . . . . . . . . . . . . . . Redirected to Shielding 185 | . . . . . . 32 . . . . 78 6 9 . 60 Ignored by Resistances 35 | . . . . . . . . . . . 35 . . . . Core Remaining (%) 90 | 100 . . . 93 100 98 . . 98 . . . . 54 . Volleys Fired 64 | 3 47 . . . . . . . . . . . . . 14 Largest 2 | 2 2 . . . . . . . . . . . . . 2 Hottest 111 | 40 40 . . . . . . . . . . . . . 111 Shots Fired 122 | 5 92 . 1 . . . . . . . . . . . 24 Gun 121 | 5 91 . 1 . . . . . . . . . . . 24 Cannon . | . . . . . . . . . . . . . . . . Launcher 1 | . 1 . . . . . . . . . . . . . . Special . | . . . . . . . . . . . . . . . . Kinetic 114 | 5 91 . 1 . . . . . . . . . . . 17 Thermal 4 | . . . . . . . . . . . . . . . 4 Explosive 1 | . 1 . . . . . . . . . . . . . . Electromagnetic 3 | . . . . . . . . . . . . . . . 3 Robot Hit Streak 5 | 2 4 . 1 . . . . . . . . . . . 5 Robot Miss Streak 4 | 1 4 . . . . . . . . . . . . . 4 Penetration Max . | . . . . . . . . . . . . . . . . Secondary Targets 1 | . 1 . . . . . . . . . . . . . . Max Gunslinging Chain 1 | . 1 . . . . . . . . . . . . . . Shots Hit Robots 142 | 3 43 . 1 . . 7 1 . 5 3 42 . 1 1 35 Core Hits 69 | 2 23 . . . . 3 . . 1 3 20 . . 1 16 Critical Kills 2 | . . . . . . . . . . . . . . . 2 Critical Parts Destroyed . | . . . . . . . . . . . . . . . . Critical Strikes 11 | . . . . . . . . . . . 5 . . . 6 Destroy 2 | . . . . . . . . . . . . . . . 2 Sever 9 | . . . . . . . . . . . 5 . . . 4 Melee Attacks 209 | . . . . . 5 20 2 . 26 46 61 12 3 2 32 Impact 13 | . . . . . 5 8 . . . . . . . . . Slashing 196 | . . . . . . 12 2 . 26 46 61 12 3 2 32 Piercing . | . . . . . . . . . . . . . . . . Sneak Attacks 10 | . . . . . . 3 1 . 1 1 2 . 1 1 . Combat Hostiles . | . . . . . . . . . . . . . . . . Follow-up Attacks 11 | . . . . . . . . . 2 . 8 . . . 1 Damage Inflicted 4493 | 37 460 . 8 . . 400 70 . 290 183 1621 . 93 85 1246 Guns 883 | 31 448 . 8 . . . . . . . . . . . 396 Cannons . | . . . . . . . . . . . . . . . . Explosions 93 | . . . . . . . . . . . . . . . 93 Melee 3481 | . . . . . . 400 70 . 290 183 1621 . 93 85 739 Ramming 36 | 6 12 . . . . . . . . . . . . . 18 Kinetic 815 | 31 448 . 8 . . . . . . . . . . . 328 Thermal 152 | . . . . . . . . . . . . . . . 152 Explosive . | . . . . . . . . . . . . . . . . Electromagnetic 9 | . . . . . . . . . . . . . . . 9 Impact 46 | . . . . . . 46 . . . . . . . . . Slashing 3435 | . . . . . . 354 70 . 290 183 1621 . 93 85 739 Piercing . | . . . . . . . . . . . . . . . . Highest Corruption 10 | . 4 4 4 4 . . . 10 10 . . . . . 7 Average Corruption 4 | . 2 4 4 4 . . . 10 10 . . . . . 5 Corruption Purged . | . . . . . . . . . . . . . . . . Corruption Blocked . | . . . . . . . . . . . . . . . . Effects 37 | . 13 . 7 3 . . . 3 9 . . . . . 2 Message Errors 9 | . 1 . 2 1 . . . 1 4 . . . . . . Matter Fused 8 | . 4 . 2 . . . . . 2 . . . . . . Heat Flow Errors 3 | . 2 . . . . . . . 1 . . . . . . Energy Discharges 4 | . 1 . 2 . . . . . 1 . . . . . . Data Loss (minor) 7 | . 4 . . 1 . . . 1 . . . . . . 1 Misfires 1 | . . . 1 . . . . . . . . . . . . Alerts 2 | . . . . 1 . . . . . . . . . . 1 Misdirections 2 | . . . . . . . . 1 1 . . . . . . Weapon Failures 1 | . 1 . . . . . . . . . . . . . . Overload Shots . | . . . . . . . . . . . . . . . . Overflow Damage 312 | . . . . . . 69 46 . 7 . 19 . 83 . 88 Projectiles . | . . . . . . . . . . . . . . . . Explosions 88 | . . . . . . . . . . . . . . . 88 Melee 224 | . . . . . . 69 46 . 7 . 19 . 83 . . Knockbacks . | . . . . . . . . . . . . . . . . Impact . | . . . . . . . . . . . . . . . . Kinetic . | . . . . . . . . . . . . . . . . Secondary . | . . . . . . . . . . . . . . . . Self-Inflicted Damage 356 | . . . . . . . . . . . . . . . 356 Shots 4 | . . . . . . . . . . . . . . . 4 Rammed 6 | 1 3 . . . . . . . . . . . . . 2 Targets Rammed 7 | 1 4 . . . . . . . . . . . . . 2 Kicked . | . . . . . . . . . . . . . . . . Crushed 1 | . 1 . . . . . . . . . . . . . . Highest Temperature 253 | . 253 . 2 . . . . . 154 . 6 5 . 4 92 Average Temperature 71 | . 90 . 2 . . . . . 102 . 6 3 . 4 41 Received Heat Transfer 801 | . 30 . . . . 6 . . 54 . 384 45 36 45 201 Siege Activations . | . . . . . . . . . . . . . . . . Martial Activations . | . . . . . . . . . . . . . . . . Shielding Activations . | . . . . . . . . . . . . . . . . Robots Disrupted . | . . . . . . . . . . . . . . . . Combat Hostiles . | . . . . . . . . . . . . . . . . Robots Corrupted 1 | . . . . . . 1 . . . . . . . . . Combat Hostiles . | . . . . . . . . . . . . . . . . Parts Fried 1 | . . . . . . 1 . . . . . . . . . Impact Corruptions 1 | . . . . . . 1 . . . . . . . . . Robots Melted . | . . . . . . . . . . . . . . . . Combat Hostiles . | . . . . . . . . . . . . . . . . Parts Melted . | . . . . . . . . . . . . . . . . Heat Transferred 124 | . . . . . . . . . . . . . . . 124 Parts Sabotaged . | . . . . . . . . . . . . . . . . Parts Stolen . | . . . . . . . . . . . . . . . . Parts Stripped . | . . . . . . . . . . . . . . . . Power Chain Reactions . | . . . . . . . . . . . . . . . . Alert | -11 -10 -10 -10 -9 -8 -7 -6 -6 -6 -5 -5 -5 -5 -5 -4 ------- Run | Yrd Mat Min Exi Min Mat Fac Fac Was Fac Fac Ext Cet Arc Hub Fac Maximum Alert Level 1 | . . . . . . . . . . . 1 . . . . Low Security (%) 93 | 100 100 100 . 100 100 100 100 100 100 100 54 100 100 100 100 Level 1 6 | . . . . . . . . . . . 45 . . . . Level 2 . | . . . . . . . . . . . . . . . . Level 3 . | . . . . . . . . . . . . . . . . Level 4 . | . . . . . . . . . . . . . . . . Level 5 . | . . . . . . . . . . . . . . . . High Security . | . . . . . . . . . . . . . . . . Max Security . | . . . . . . . . . . . . . . . . Peak Influence 303 | 5 80 . . . 16 46 8 . 30 87 303 132 44 23 101 Initial 132 | . . . . . . . 2 . . 14 38 132 37 1 . Average 41 | . 23 . . . 2 10 1 . 4 18 170 111 30 5 45 Influence Increases 1968 | 5 251 . . . 48 151 8 . 112 184 725 52 7 35 390 Destroy 0b10 Robot/C 680 | . 140 . . . . . . . 20 . 380 . . . 140 Destroy 0b10 Robot/NC 130 | 5 45 . . . . 20 5 . 5 15 15 . 5 5 10 Destroy Leader 130 | . 36 . . . . 4 2 . 12 4 40 . . 2 30 Allied During Kill 59 | . . . . . . . . . . . 59 . . . . Successful Hack 162 | . 24 . . . . 28 . . 33 . 46 5 . 26 . Disable Machine 180 | . . . . . 30 15 . . . 45 15 15 . . 60 Destroy Structure 177 | . 6 . . . 3 9 1 . 12 60 20 2 2 2 60 Partial Spotted 105 | . . . . . . 45 . . 15 15 . 30 . . . Lose Combat Pursuer 345 | . . . . . 15 30 . . 15 45 150 . . . 90 Influence Decreases 1929 | 5 251 . . . 47 146 14 . 82 135 567 195 97 39 351 Entered New Map 227 | . . . . . . 1 4 . . 16 41 105 57 3 . Time Decay 1132 | 5 251 . . . 47 145 10 . 64 119 244 60 10 26 151 Lost Part 370 | . . . . . . . . . . . 100 30 30 10 200 Lost Ally 142 | . . . . . . . . . 18 . 124 . . . . Purge Threat 58 | . . . . . . . . . . . 58 . . . . Squads Dispatched 16 | . 1 . . . 1 3 . . 1 1 2 2 . 2 3 Investigation 7 | . . . . . . 1 . . . . 1 2 . 1 2 Extermination 4 | . . . . . . 1 . . 1 1 . . . . 1 Reinforcement 5 | . 1 . . . 1 1 . . . . 1 . . 1 . Assault . | . . . . . . . . . . . . . . . . Garrison . | . . . . . . . . . . . . . . . . Intercept . | . . . . . . . . . . . . . . . . Searches Triggered . | . . . . . . . . . . . . . . . . Construction Impeded . | . . . . . . . . . . . . . . . . Haulers Reinforced . | . . . . . . . . . . . . . . . . Active Scanning Responses . | . . . . . . . . . . . . . . . . Cargo Convoy Interrupts . | . . . . . . . . . . . . . . . . Stealth | -11 -10 -10 -10 -9 -8 -7 -6 -6 -6 -5 -5 -5 -5 -5 -4 --------- Run | Yrd Mat Min Exi Min Mat Fac Fac Was Fac Fac Ext Cet Arc Hub Fac Distress Signals 7 | . . . . . 2 . . . 2 . 1 1 . 1 . Communications Jammed . | . . . . . . . . . . . . . . . . Distress Signals . | . . . . . . . . . . . . . . . . Times Spotted 120 | . 16 . . . 1 4 . 5 4 8 28 9 4 16 25 Peak Tracking Total 14 | . 4 . . . 2 2 . 5 4 4 8 8 4 14 8 Tactical Retreats 11 | . . . . . 1 2 . . 1 1 4 . . . 2 Traps | -11 -10 -10 -10 -9 -8 -7 -6 -6 -6 -5 -5 -5 -5 -5 -4 ------- Run | Yrd Mat Min Exi Min Mat Fac Fac Was Fac Fac Ext Cet Arc Hub Fac Traps Triggered 14 | . 6 . . . . 2 1 . . 2 1 . . . 2 Indirectly . | . . . . . . . . . . . . . . . . Trap Hack Attempts . | . . . . . . . . . . . . . . . . Triggered . | . . . . . . . . . . . . . . . . Disarmed 6 | . . . . . . 6 . . . . . . . . . Reprogrammed 4 | . . . . . . . . . . . . . . 4 . Reused . | . . . . . . . . . . . . . . . . Traps Extracted . | . . . . . . . . . . . . . . . . Installed . | . . . . . . . . . . . . . . . . Triggered . | . . . . . . . . . . . . . . . . Machines | -11 -10 -10 -10 -9 -8 -7 -6 -6 -6 -5 -5 -5 -5 -5 -4 ---------- Run | Yrd Mat Min Exi Min Mat Fac Fac Was Fac Fac Ext Cet Arc Hub Fac Machines Disabled 12 | . . . . . 2 1 . . . 3 1 1 . . 4 Max in Single Turn 4 | . . . . . 1 1 . . . 1 1 1 . . 4 Garrison Access 2 | . . . . . . 1 . . 1 . . . . . . Machines Repaired . | . . . . . . . . . . . . . . . . Machines Dismantled . | . . . . . . . . . . . . . . . . Machines Sabotaged . | . . . . . . . . . . . . . . . . Overloaded Fab Kills . | . . . . . . . . . . . . . . . . Hacking | -11 -10 -10 -10 -9 -8 -7 -6 -6 -6 -5 -5 -5 -5 -5 -4 --------- Run | Yrd Mat Min Exi Min Mat Fac Fac Was Fac Fac Ext Cet Arc Hub Fac Machines Accessed 45 | . 7 . 1 . 2 7 1 . 4 3 9 3 . 5 3 Terminals 35 | . 7 . . . 1 4 . . 3 2 9 3 . 5 1 Fabricators 3 | . . . . . . 1 . . . 1 . . . . 1 Repair Stations . | . . . . . . . . . . . . . . . . Recycling Units . | . . . . . . . . . . . . . . . . Scanalyzers 3 | . . . . . 1 1 1 . . . . . . . . Garrison Access 3 | . . . . . . 1 . . 1 . . . . . 1 Total Hacks 129 | . 24 . 1 . 9 16 2 . 9 9 31 9 . 14 5 Successful 73 | . 15 . 1 . 7 10 . . 7 2 18 4 . 6 3 Failed 56 | . 9 . . . 2 6 2 . 2 7 13 5 . 8 2 Catastrophic 2 | . . . . . . . . . 1 . . . . 1 . Database Lockouts . | . . . . . . . . . . . . . . . . Manual 56 | . 16 . 1 . 3 7 . . 3 . 22 . . 4 . Terminals 105 | . 24 . . . 3 10 . . 8 5 31 9 . 14 1 Fabricators 7 | . . . . . . 1 . . . 4 . . . . 2 Repair Stations . | . . . . . . . . . . . . . . . . Recycling Units . | . . . . . . . . . . . . . . . . Scanalyzers 11 | . . . . . 6 3 2 . . . . . . . . Garrison Access 5 | . . . . . . 2 . . 1 . . . . . 2 Terminal Hacks 41 | . 8 . 1 . . 3 . . 5 1 13 4 . 5 1 Record 3 | . . . . . . . . . . . . 3 . . . Robot Analysis 4 | . 1 . . . . . . . 2 . 1 . . . . Prototype ID Bank 3 | . 3 . . . . . . . . . . . . . . Open Door 5 | . . . . . . . . . . 1 3 1 . . . Open DSF 1 | . . . . . . . . . . . . . . . 1 Level Access Points 2 | . . . . . . 1 . . 1 . . . . . . Branch Access Points 1 | . . . . . . . . . . . . . . 1 . Terminal Index 3 | . 1 . . . . . . . . . 2 . . . . Repair Station Index 1 | . . . . . . . . . . . . . . 1 . Scanalyzer Index 1 | . . . . . . . . . . . 1 . . . . Unreport Threat 1 | . . . . . . . . . . . 1 . . . . Locate Traps 4 | . 2 . . . . . . . . . 1 . . 1 . Disarm Traps 1 | . . . . . . 1 . . . . . . . . . Reprogram Traps 1 | . . . . . . . . . . . . . . 1 . Recall Investigation 1 | . . . . . . . . . . . 1 . . . . Recall Extermination 1 | . . . . . . 1 . . . . . . . . . Hauler Manifests 2 | . 1 . . . . . . . 1 . . . . . . Zone Layout 5 | . . . . . . . . . 1 . 3 . . 1 . Proto ID Catalog 1 | . . . 1 . . . . . . . . . . . . Fabricator Hacks 4 | . . . . . . 1 . . . 1 . . . . 2 Network Status 1 | . . . . . . 1 . . . . . . . . . Load Schematic 2 | . . . . . . . . . . 1 . . . . 1 Build 1 | . . . . . . . . . . . . . . . 1 Repair Station Hacks . | . . . . . . . . . . . . . . . . Recycling Unit Hacks . | . . . . . . . . . . . . . . . . Scanalyzer 8 | . . . . . 5 3 . . . . . . . . . Insert Component 1 | . . . . . . 1 . . . . . . . . . Analyze 1 | . . . . . . 1 . . . . . . . . . Retrieve Study 6 | . . . . . 5 1 . . . . . . . . . Garrison Access Hacks 2 | . . . . . . 1 . . 1 . . . . . . Seal Access 2 | . . . . . . 1 . . 1 . . . . . . Unauthorized Hacks 18 | . 7 . . . 2 2 . . 1 . 5 . . 1 . Terminals 18 | . 7 . . . 2 2 . . 1 . 5 . . 1 . Assimilate 1 | . . . . . . . . . . . . . . 1 . Botnet 9 | . 3 . . . 1 2 . . 1 . 2 . . . . Skim 8 | . 4 . . . 1 . . . . . 3 . . . . Fabricators . | . . . . . . . . . . . . . . . . Repair Stations . | . . . . . . . . . . . . . . . . Recycling Units . | . . . . . . . . . . . . . . . . Scanalyzers . | . . . . . . . . . . . . . . . . Garrison Access . | . . . . . . . . . . . . . . . . Data Cores Recovered . | . . . . . . . . . . . . . . . . Used . | . . . . . . . . . . . . . . . . Hacking Detections 32 | . 5 . . . 1 5 1 . 2 2 7 2 . 5 2 Full Trace Events 6 | . . . . . . 1 . . . . . 2 . 1 2 Feedback Events . | . . . . . . . . . . . . . . . . Feedback Blocked . | . . . . . . . . . . . . . . . . Robot Schematics Acquired . | . . . . . . . . . . . . . . . . Robots Built . | . . . . . . . . . . . . . . . . Authchips . | . . . . . . . . . . . . . . . . Time . | . . . . . . . . . . . . . . . . Total Robot Build Rating . | . . . . . . . . . . . . . . . . Part Schematics Acquired 1 | . . . . . . 1 . . . . . . . . . Parts Built 2 | . . . . . . . . . . . . . . . 2 Authchips . | . . . . . . . . . . . . . . . . Time 31 | . . . . . . . . . . . . . . . 31 Total Part Build Rating 4 | . . . . . . . . . . . . . . . 4 Part Studies Acquired 6 | . . . . . 5 1 . . . . . . . . . Parts Repaired . | . . . . . . . . . . . . . . . . Time . | . . . . . . . . . . . . . . . . Parts Recycled . | . . . . . . . . . . . . . . . . Recycled Matter . | . . . . . . . . . . . . . . . . Retrieved Matter . | . . . . . . . . . . . . . . . . Retrieved Components . | . . . . . . . . . . . . . . . . Parts Scanalyzed 1 | . . . . . . 1 . . . . . . . . . Part Schematics Acquired 1 | . . . . . . 1 . . . . . . . . . Parts Damaged . | . . . . . . . . . . . . . . . . Bothacking | -11 -10 -10 -10 -9 -8 -7 -6 -6 -6 -5 -5 -5 -5 -5 -4 ------------ Run | Yrd Mat Min Exi Min Mat Fac Fac Was Fac Fac Ext Cet Arc Hub Fac Used RIF Installer . | . . . . . . . . . . . . . . . . Robots Hacked . | . . . . . . . . . . . . . . . . Non-combat . | . . . . . . . . . . . . . . . . Combat . | . . . . . . . . . . . . . . . . Robot Hacks Applied . | . . . . . . . . . . . . . . . . Relay Couplers Released . | . . . . . . . . . . . . . . . . Fabnet Peak Effective % . | . . . . . . . . . . . . . . . . Robots Rewired 8 | . . . . . . . . . . . 8 . . . . Allies Hacked . | . . . . . . . . . . . . . . . . Hacks Repelled . | . . . . . . . . . . . . . . . . Allies | -11 -10 -10 -10 -9 -8 -7 -6 -6 -6 -5 -5 -5 -5 -5 -4 -------- Run | Yrd Mat Min Exi Min Mat Fac Fac Was Fac Fac Ext Cet Arc Hub Fac Total Allies 21 | . . . . . . . . . 8 . 12 . . 1 . Largest Group 7 | . . . . . . . . . 7 . 7 . . 1 . Highest-Rated Group 219 | . . . . . . . . . 183 . 219 . . 26 . Highest-Rated Ally 39 | . . . . . . . . . 31 . 39 . . 26 . Total Orders . | . . . . . . . . . . . . . . . . Ally Attacks 55 | . . . . . . . . . 12 . 43 . . . . Total Damage 919 | . . . . . . . . . 203 . 716 . . . . Kills 12 | . . . . . . . . . 1 . 11 . . . . Allies Corrupted . | . . . . . . . . . . . . . . . . Allies Melted . | . . . . . . . . . . . . . . . . Intel | -11 -10 -10 -10 -9 -8 -7 -6 -6 -6 -5 -5 -5 -5 -5 -4 ------- Run | Yrd Mat Min Exi Min Mat Fac Fac Was Fac Fac Ext Cet Arc Hub Fac Active Infowar (turns) 2682 | 61 714 . 260 33 . 464 86 37 274 501 239 . . 13 . Optics 888 | . . . . . . . 67 37 274 501 9 . . . . Sensors 1894 | . . . 260 33 . 464 86 37 274 501 239 . . . . Seismic 775 | 61 714 . . . . . . . . . . . . . . Cloaking 13 | . . . . . . . . . . . . . . 13 . Robot Analysis Total 4 | . 1 . . . . . . . 2 . 1 . . . . Derelict Logs Recovered . | . . . . . . . . . . . . . . . . Drone Launches . | . . . . . . . . . . . . . . . . Drone Recoveries . | . . . . . . . . . . . . . . . . Exploration | -11 -10 -10 -10 -9 -8 -7 -6 -6 -6 -5 -5 -5 -5 -5 -4 ------------- Run | Yrd Mat Min Exi Min Mat Fac Fac Was Fac Fac Ext Cet Arc Hub Fac Turns Passed 4480 | 111 1009 69 352 99 260 466 86 37 274 501 578 124 26 109 379 Spaces Moved 5386 | 57 514 44 215 59 416 953 172 94 507 667 625 229 53 274 507 Core 89 | 2 . . . . . . . . . . . . . . 87 Treads 977 | 55 514 44 215 59 . . . . . . 90 . . . . Legs 19 | . . . . . . . . . . . . . . . 19 Wheels . | . . . . . . . . . . . . . . . . Hover . | . . . . . . . . . . . . . . . . Flight 4301 | . . . . . 416 953 172 94 507 667 535 229 53 274 401 Fastest Speed 25 | 50 160 160 160 160 50 39 39 39 39 34 34 34 34 34 25 Average Speed 60 | 156 160 160 160 160 50 41 39 39 39 34 52 34 36 34 38 Slowest Speed 320 | 160 240 160 160 160 50 50 39 39 39 34 320 39 39 34 120 Overloaded Moves . | . . . . . . . . . . . . . . . . Propulsion Burnouts . | . . . . . . . . . . . . . . . . Robots Hopped 31 | . . . . . 2 . . . 8 3 6 3 2 2 5 Potential Cave-ins . | . . . . . . . . . . . . . . . . Cave-ins Triggered . | . . . . . . . . . . . . . . . . Exploration Rate (%) 41 | 4 86 11 61 18 34 26 7 94 20 20 71 86 68 39 20 Regions Visited 15 Branch Regions 7 Pre-discovered Areas . | . . . . . . . . . . . . . . . . Known Exits Taken 7 | . . . . . . 1 . . 1 1 1 1 1 1 . Unknown Exits Taken 6 | 1 1 1 1 1 1 . . . . . . . . . . Scrap Searched . | . . . . . . . . . . . . . . . . Spaces Dug 73 | . 6 . . . 2 8 1 . 12 31 4 1 1 1 6 Terrain Destroyed 96 | . 6 . . . 2 8 1 . 12 31 4 1 1 1 29 Melee 67 | . . . . . 2 8 1 . 12 31 4 1 1 1 6 Projectile 2 | . . . . . . . . . . . . . . . 2 AOE 27 | . 6 . . . . . . . . . . . . . 21 Terrain Rammed 1 | . . . . . . . . . . . . . . . 1 Walls Destroyed . | . . . . . . . . . . . . . . . . Machines Disabled . | . . . . . . . . . . . . . . . . Actions | -11 -10 -10 -10 -9 -8 -7 -6 -6 -6 -5 -5 -5 -5 -5 -4 --------- Run | Yrd Mat Min Exi Min Mat Fac Fac Was Fac Fac Ext Cet Arc Hub Fac Total 6158 | 71 614 43 226 63 454 995 186 93 544 879 790 254 53 282 611 Wait 295 | . 13 . . . 18 . . . 15 165 37 15 . 1 31 Move 5317 | 57 513 43 214 58 411 952 172 93 491 660 614 224 48 270 497 Hop 25 | . . . . . 2 . . . 7 3 4 1 2 1 5 Pick Up 62 | 4 14 . 2 . 6 8 3 . 4 3 13 . . 2 3 Fast Attach 42 | 7 5 . . . 1 2 1 . . . 10 . . . 16 Attach 29 | . . . . 1 3 2 3 . . 2 7 3 1 2 5 Detach 3 | . . . 1 . . 1 . . . . 1 . . . . Swap 45 | . 9 . 2 3 6 3 3 . 3 2 7 . . 4 3 Drop 55 | . 9 . 7 1 2 9 2 . 5 1 13 . . . 6 Fire 64 | 3 47 . . . . . . . . . . . . . 14 Melee 173 | . . . . . 5 18 2 . 19 37 49 11 2 2 28 Ram 3 | . . . . . . . . . . . . . . . 3 Kick . | . . . . . . . . . . . . . . . . Crush 4 | . 4 . . . . . . . . . . . . . . Escape Stasis 6 | . . . . . . . . . . 6 . . . . . Rewire 35 | . . . . . . . . . . . 35 . . . . Trap . | . . . . . . . . . . . . . . . . Miscellaneous . | . . . . . . . . . . . . . . . . Route ------- -11/Scrapyard -10/Materials (discovered 5 exits: [*Mat x3] / [*Min] / [*Sub]) -10/Mines -10/Exiles -9/Mines -8/Materials -7/Factory (discovered 6 exits: *Fac x4 / *Low x2) -6/Factory -6/Waste -6/Factory (discovered 4 exits: *Fac x4) -5/Factory (discovered 2 exits: *Upp / *Ext) -5/Extension (discovered 2 exits: *Fac / *Cet) -5/Cetus (discovered 2 exits: *Fac / *Arc) -5/Archives -5/Hub_04(d) -4/Factory History --------- Turn | Location | Event 6 | -11/Scrapyard | Discovered new exit (range 15) 112 | -11/Scrapyard | Entered Materials 313 | -10/Materials | Build established: Mutant 418 | -10/Materials | Discovered new exit (range 15) 740 | -10/Materials | Discovered new exit (range 7) 753 | -10/Materials | Discovered new exit (range 11) 902 | -10/Materials | Discovered new exit (range 13) 1041 | -10/Materials | Discovered new exit (range 6) 1121 | -10/Materials | Entered Mines 1182 | -10/Mines | Deemed a non-threat by the Exiles lab entrance 1184 | -10/Mines | Discovered new exit (range 5) 1190 | -10/Mines | Entered Exiles 1229 | -10/Exiles | Met 8R-AWN 1258 | -10/Exiles | Met EX-HEX 1305 | -10/Exiles | Met EX-BIN 1325 | -10/Exiles | Aligned with FarCom system 1326 | -10/Exiles | Given EX-Vault access code 1369 | -10/Exiles | Opened EX-Vault 1383 | -10/Exiles | Found Flying Fortress v7 1387 | -10/Exiles | Found Cloak of Protection 1419 | -10/Exiles | Warned to stay clear of 0b10 Research branches 1468 | -10/Exiles | Met EX-DEC 1526 | -10/Exiles | Discovered new exit (range 10) 1542 | -10/Exiles | Stole two prototypes: Flying Fortress v7, Cloak of Protection 1542 | -10/Exiles | Entered Mines 1622 | -9/Mines | Discovered new exit (range 11) 1641 | -9/Mines | Entered Materials 1641 | -8/Materials | Evolved 4 slots: Propulsion x2, Utility x2 1842 | -8/Materials | Discovered new exit (range 16) 1901 | -8/Materials | Entered Factory 1901 | -7/Factory | Evolved 2 slots: Propulsion x1, Utility x1 1903 | -7/Factory | FarCom data flow suspended 1917 | -7/Factory | Identified exit to Factory 2225 | -7/Factory | Discovered new exit (range 8) 2228 | -7/Factory | Identified exit to Lower Caves 2345 | -7/Factory | Discovered exit to Lower Caves (range 14) 2367 | -7/Factory | Entered another Factory area 2367 | -6/Factory | Evolved 2 slots: Utility x2 2453 | -6/Factory | Sucked down chute 2453 | -6/Factory | Entered Waste 2463 | -6/Waste | Spotted C-40 Crusher 2463 | -6/Waste | Spotted C-40 Crusher 2466 | -6/Waste | Spotted C-40 Crusher 2467 | -6/Waste | Spotted C-40 Crusher 2468 | -6/Waste | EMP discharged 2468 | -6/Waste | System corruption reached 10% 2469 | -6/Waste | Spotted C-40 Crusher 2485 | -6/Waste | Discovered new exit (range 12) 2489 | -6/Waste | Identified exit to Factory 2490 | -6/Waste | Entered Factory 2656 | -6/Factory | Build established: Hacker-Scout 2753 | -6/Factory | Identified exit to Factory 2764 | -6/Factory | Entered another Factory area 2764 | -5/Factory | Evolved 2 slots: Propulsion x1, Utility x1 2766 | -5/Factory | Discovered new exit (range 12) 2771 | -5/Factory | Identified exit to Upper Caves 3263 | -5/Factory | Discovered new exit (range 9) 3265 | -5/Factory | Identified exit to Extension 3265 | -5/Factory | Entered Extension 3306 | -5/Extension | Rescued a captive Derelict 3307 | -5/Extension | Rescued a captive Derelict 3427 | -5/Extension | Rescued a captive Derelict 3513 | -5/Extension | Lost 8 allies 3580 | -5/Extension | Lost 8 parts (1p4n3u) 3658 | -5/Extension | Spotted B-75 Beast 3672 | -5/Extension | Spotted B-75 Beast 3799 | -5/Extension | Rescued a captive Derelict 3820 | -5/Extension | Discovered new exit (range 10) 3820 | -5/Extension | Discovered new exit (range 6) 3824 | -5/Extension | Identified exit to Cetus 3824 | -5/Extension | Identified exit to Factory 3843 | -5/Extension | Entered Cetus 3848 | -5/Cetus | Spotted Cetus Guard 3849 | -5/Cetus | Spotted Cetus Guard 3849 | -5/Cetus | Spotted Cetus Guard 3856 | -5/Cetus | Discovered exit to Factory (range 16) 3872 | -5/Cetus | Spotted Cetus Guard 3910 | -5/Cetus | Lost 3 parts (2n1u) 3962 | -5/Cetus | Discovered new exit (range 16) 3967 | -5/Cetus | Identified exit to Archives 3967 | -5/Cetus | Entered Archives 3982 | -5/Archives | Unable to access archive contents 3984 | -5/Archives | Discovered new exit (range 15) 3992 | -5/Archives | Identified exit to Hub_04(d) 3993 | -5/Archives | Entered Hub_04(d) 4018 | -5/Hub_04(d) | Lost 3 parts (2n1u) 4020 | -5/Hub_04(d) | Build established: Hacker-Mutant 4097 | -5/Hub_04(d) | Discovered exit to Factory (range 9) 4102 | -5/Hub_04(d) | Entered Factory 4102 | -4/Factory | Evolved 2 slots: Propulsion x1, Utility x1 4105 | -4/Factory | Identified exit to DSF 4191 | -4/Factory | Spotted B-86 Titan 4270 | -4/Factory | Fabricated VTOL Module (x2) 4344 | -4/Factory | Core integrity fell below 50% 4366 | -4/Factory | Lost 14 parts (1p6n5u2w) 4427 | -4/Factory | Core integrity fell below 20% 4438 | -4/Factory | Released all parts (6) 4459 | -4/Factory | Lost 3 parts (1n2w) 4481 | -4/Factory | Destroyed by G-67 Veteran with Plasma Rifle Last Messages --------------- 04432_ R-10 Processor collects Lgt. Antimatter Reactor. 04432_ Acquired 59 matter. 04437_ Kicked Door. 04437_ Destabilizing: Core damaged (-11). 04437_ Destabilizing: System corrupted (+2). 04438_ Released Imp. Heat Sink. 04438_ Released Lgt. Nuclear Core. 04438_ Released Myomer Leg. 04438_ Released Flexi-carbon Leg. 04438_ Released Imp. Medium Armor Plating. 04438_ Released KE Penetrator. 04439_ U-05 Engineer lays Concrete. 04452_ U-05 Engineer builds a Wall. 04453_ Slug penetrates Wall. 04454_ System corrupted: Component data lost. 04456_ Slug penetrates Wall. 04458_ Penetrated by Slug. 04461_ O-16 Technician: "IFF HANDSHAKE FAILED. SECURING TERMINAL." 04478_ Slammed into B-60 Warrior. 04479_ Slammed into G-67 Veteran. Map ----- +----------------------------------------------------+ | ?????????????????????????????????????????????????? | | #######??????????????????????????????????????????? | | #??????????????????????????????????????????? | | #??????????????????????????????????????????? | | #??????????????????????????????????????????? | | #??????????????????????????????????????????? | | #??????????????????????????????????????????? | | #??###??#??????????????????????????????????? | | #?? ?= ??????????????????????????????????? | | #?# "??????????????????????????????????? | | #?#! ""#?????????????????????????????????? | | #?# ""#?????????????????????????????????? | | #?# " ""#?????????????????????????????????? | | ? #?# " ""#?????????????????????????????????? | | +####/#?# " T"#?????????????????????????????????? | | ### " ""#???????????????????? ????????????? | | # " ""#??????????????????? ???????????? | | + " ""#?????????????????? ???????????? | | # " ""#???????????????## ??????????? | | ###### " "#?????????????? ??????????? | | #????# " * #????????????? ??????????? | | #????# #??####+###### A ?????????? | | #????########??# g ?????????? | | #??????????????# ????????? | | #??????????????# ????????? | | #??????????????# g @ ????????? | | #??????????????# gg k ????????? | | #??????????????# g ##############???????????? | | #??????????????# b # #???????????? | | #??????????????# # * !#???????????? | | ##?????????????+ + #???????????? | | T#?????????????# # ! #???????????? | | #?????????????# # #???????????? | | ##?????????????# # """" """" #???????????? | | #??????????????# # """" """"?????????????? | | ################ # """" """??????????????? | | # """" ""???????????????? | | # """" "????????????????? | | " + """" "????????????????? | | # ?????????????? | | #############????????????? | | ###########+###????????????????????????? | | #????????? ??????????????????????????? | | #????????? ??????????????????????????? | | #???????? """ ?????????????????????????? | | #???????? """ ?????????????????????????? | | #??????? """ "????????????????????????? | | #??????? ????????????????????????? | | +##########?????? """ ""???????????????????????? | | #????????? ??? ""???????????????????????? | +----------------------------------------------------+ Best States ------------- Heat Dissipation 57 Energy Generation 19 Energy Capacity 500 Matter Stores 300 Matter Capacity 300 Sight Range 22 Robot Scan Range 15 Terrain Scan Density 10 Cloak Strength 5 Armor Coverage 600 Resistance: TH 10 Core Shielding 30 Propulsion Shielding 66 Weapon Shielding 33 Phase Shifting 5 Evasion (%) 65 Melee Accuracy 24 Recoil Reduction 4 Offensive Hacking 32 Defensive Hacking 20 Item Schematics ----------------- VTOL Module | -7/Factory | Scanalyzed Robot Schematics ------------------ None Fabricated ------------ VTOL Module | x2 | -4/Factory Repaired ---------- Nothing Studied --------- Ion Engine | -8/Materials | Hacked Lgt. Ion Engine | -8/Materials | Hacked Hpw. Shotgun | -8/Materials | Hacked Lgt. Assault Rifle | -8/Materials | Hacked Grenade Launcher | -8/Materials | Hacked VTOL Module | -7/Factory | Hacked Alien Tech Used ----------------- None Achievements -------------- A New Friend Challenges ------------ None Game ------ Seed PiercingStormMultitool Manual? 0 Play Time 01:19:50 Cumulative 53.5 hours Start 2026.01.11 @ 22:50:57 End 2026.01.12 @ 00:18:20 Sessions 1 Manual Loads 0 Difficulty Rogue Special Mode None Game No. 60 Rogue 60 Adventurer 0 Explorer 0 Win Type - Total 1 Types 1/0/0/0/0/0/0/0/0/0 Lore% 42 Gallery% 40 Achievement% 29 Wizard Run 0 Options --------- Layout 0 ASCII 0 Keyboard 0 Movement Arrows Keybinds 1 Fullscreen 1 Font 18/X11 Map View 76x50 Zoom Use 0% Tactical HUD 1 Map Filters NONE Filters NONE Steam 1 RUN: 697c0b98-a782-4d19-b423-e4f50d007cb9